fUST/lending_fUST_20240227
["ID","MTS","AMOUNT","RATE_DAILY","PERIOD"]
[315436522,1709035842230,-500.0,0.00019452,2]
[315436523,1709035842239,-500.0,0.00019452,2]
[315436524,1709035842249,-500.0,0.00019452,2]
[315436526,1709035842259,-237.30620827,0.00019452,2]
[315436528,1709035842269,-500.0,0.00019452,2]
[315436530,1709035842279,-500.0,0.00019452,2]
[315436532,1709035842289,-500.0,0.00019452,2]
[315436535,1709035842298,-500.0,0.00019452,2]
[315436538,1709035842307,-500.0,0.00019452,2]
[315436539,1709035842317,-500.0,0.00019452,2]
[315436541,1709035842326,-4736.95,0.00019452,2]
[315436542,1709035842336,-500.0,0.00019452,2]
[315436543,1709035842345,-500.0,0.00019452,2]
[315436545,1709035842355,-500.0,0.00019452,2]
[315436547,1709035842365,-226.05511992,0.00019452,2]
[315436549,1709035842374,-500.0,0.00019452,2]
[315436550,1709035842383,-500.0,0.00019452,2]
[315436551,1709035842393,-500.0,0.00019452,2]
[315436552,1709035842402,-500.0,0.00019452,2]
[315436553,1709035842411,-500.0,0.00019452,2]
[315436554,1709035842421,-1696.59,0.00019452,2]
[315436555,1709035842432,-3444.64,0.00019452,2]
[315436556,1709035842441,-500.0,0.00019452,2]
[315436558,1709035842450,-1520.22,0.00019452,2]
[315436559,1709035842459,-1350.58,0.00019452,2]
[315436560,1709035842469,-500.0,0.00019452,2]
[315436561,1709035842479,-500.0,0.00019452,2]
[315436562,1709035842489,-500.0,0.00019452,2]
[315436563,1709035842499,-615.37,0.00019452,2]
[315436564,1709035842509,-6761.48,0.00019452,2]
[315436566,1709035842518,-2461.52,0.00019452,2]
[315436567,1709035842528,-500.0,0.00019452,2]
[315436568,1709035842537,-2468.64,0.00019452,2]
[315436569,1709035842546,-501.17206482,0.00019452,2]
[315436570,1709035842555,-4680.3,0.00019452,2]
[315436571,1709035842565,-500.53281888,0.00019452,2]
[315436572,1709035842574,-524.3336593,0.00019452,2]
[315436573,1709035842583,-500.0,0.00019452,2]
[315436574,1709035842593,-500.0,0.00019452,2]
[315436575,1709035842602,-18367.97,0.00019452,2]
[315436576,1709035842612,-2703.9370404,0.000195,2]
[315436577,1709035842621,-486.79569354,0.00019506,2]
[315436578,1709035842631,-521.70438859,0.00019615,2]
[315436580,1709035842639,-2059.04703717,0.00019626,2]
[315436581,1709035842649,-166.666666,0.00019627,2]
[315436582,1709035842658,-200.6117409,0.0001963,2]
[315436583,1709035842667,-200.6117409,0.0001963,2]
[315436584,1709035842678,-200.6117409,0.0001963,2]
[315436585,1709035842691,-575.27,0.00019725,2]
[315436586,1709035842700,-575.27,0.00019725,2]
[315436587,1709035842709,-575.27,0.00019725,2]
[315436588,1709035842719,-500.0,0.00019726,2]
[315436589,1709035842729,-500.0,0.00019726,2]
[315436590,1709035842738,-500.0,0.00019726,2]
[315436591,1709035842747,-500.0,0.00019726,2]
[315436592,1709035842756,-500.0,0.00019726,2]
[315436593,1709035842766,-500.0,0.00019726,2]
[315436594,1709035842776,-1345.94,0.00019726,2]
[315436595,1709035842785,-500.0,0.00019726,2]
[315436596,1709035842794,-500.0,0.00019726,2]
[315436597,1709035842803,-500.0,0.00019726,2]
[315436599,1709035842813,-502.36541284,0.00019726,2]
[315436600,1709035842822,-500.0,0.00019726,2]
[315436601,1709035842832,-500.0,0.00019726,2]
[315436602,1709035842841,-500.0,0.00019726,2]
[315436603,1709035842851,-501.21301573,0.00019726,2]
[315436604,1709035842860,-501.95643743,0.00019726,2]
[315436605,1709035842870,-500.0,0.00019726,2]
[315436606,1709035842881,-500.0,0.00019726,2]
[315436607,1709035842891,-500.0,0.00019726,2]
[315436608,1709035842900,-500.0,0.00019726,2]
[315436609,1709035842910,-500.0,0.00019726,2]
[315436610,1709035842919,-500.0,0.00019726,2]
[315436611,1709035842931,-1508.38,0.00019726,2]
[315436612,1709035842940,-500.0,0.00019726,2]
[315436613,1709035842950,-190.12652069,0.00019726,2]
[315436614,1709035842959,-719.11,0.00019726,2]
[315436615,1709035842969,-500.0,0.00019726,2]
[315436616,1709035842978,-604.49,0.00019726,2]
[315436617,1709035842988,-228.67540805,0.00019726,2]
[315436618,1709035842998,-500.0,0.00019726,2]
[315436619,1709035843007,-500.0,0.00019726,2]
[315436620,1709035843016,-790.66,0.00019726,2]
[315436621,1709035843026,-500.0,0.00019726,2]
[315436622,1709035843035,-241.83685928,0.00019726,2]
[315436623,1709035843045,-500.0,0.00019726,2]
[315436624,1709035843055,-500.0,0.00019726,2]
[315436625,1709035843065,-500.0,0.00019726,2]
[315436626,1709035843074,-500.0,0.00019726,2]
[315436627,1709035843084,-500.0,0.00019726,2]
[315436628,1709035843093,-500.0,0.00019726,2]
[315436629,1709035843103,-500.0,0.00019726,2]
[315436630,1709035843112,-686.73,0.00019726,2]
[315436631,1709035843122,-500.0,0.00019726,2]
[315436632,1709035843131,-500.0,0.00019726,2]
[315436633,1709035843141,-500.0,0.00019726,2]
[315436634,1709035843152,-620.31,0.00019726,2]
[315436635,1709035843162,-500.0,0.00019726,2]
[315436636,1709035843172,-500.0,0.00019726,2]
[315436637,1709035843183,-500.0,0.00019726,2]
[315436638,1709035843192,-500.0,0.00019726,2]
[315436639,1709035843202,-448.32673264,0.00019726,2]
[315436640,1709035843211,-1585.05,0.00019726,2]
[315436641,1709035843220,-500.0,0.00019726,2]
[315436642,1709035843230,-354.29,0.00019726,2]
[315436643,1709035843239,-1620.18,0.00019726,2]
[315436644,1709035843248,-500.0,0.00019726,2]
[315436645,1709035843257,-500.0,0.00019726,2]
[315436646,1709035843267,-500.0,0.00019726,2]
[315436647,1709035843278,-500.0,0.00019726,2]
[315436648,1709035843288,-500.0,0.00019726,2]
[315436649,1709035843298,-500.0,0.00019726,2]
[315436650,1709035843308,-500.0,0.00019726,2]
[315436651,1709035843318,-500.0,0.00019726,2]
[315436652,1709035843332,-585.56,0.00019726,2]
[315436653,1709035843342,-292.53384056,0.00019726,2]
[315436654,1709035843352,-500.0,0.00019726,2]
[315436655,1709035843362,-500.0,0.00019726,2]
[315436656,1709035843372,-946.12,0.00019726,2]
[315436657,1709035843381,-500.0,0.00019726,2]
[315436658,1709035843390,-500.0,0.00019726,2]
[315436659,1709035843399,-1452.52,0.00019726,2]
[315436660,1709035843408,-500.0,0.00019726,2]
[315436661,1709035843417,-741.79,0.00019726,2]
[315436662,1709035843427,-500.0,0.00019726,2]
[315436663,1709035843436,-928.72,0.00019726,2]
[315436664,1709035843445,-500.0,0.00019726,2]
[315436665,1709035843454,-500.0,0.00019726,2]
[315436666,1709035843463,-3937.8,0.00019726,2]
[315436667,1709035843472,-306.64800142,0.00019726,2]
[315436668,1709035843481,-500.0,0.00019726,2]
[315436669,1709035843491,-500.96626582,0.00019726,2]
[315436670,1709035843500,-2699.86,0.00019726,2]
[315436671,1709035843509,-698.25,0.00019726,2]
[315436672,1709035843518,-871.18,0.00019726,2]
[315436673,1709035843527,-500.0,0.00019726,2]
[315436674,1709035843536,-3214.42,0.00019726,2]
[315436675,1709035843545,-1193.53,0.00019726,2]
[315436676,1709035843554,-500.0,0.00019726,2]
[315436677,1709035843563,-800.55,0.00019726,2]
[315436678,1709035843572,-500.0,0.00019726,2]
[315436679,1709035843581,-500.0,0.00019726,2]
[315436680,1709035843590,-1834.45,0.00019726,2]
[315436681,1709035843599,-500.0,0.00019726,2]
[315436682,1709035843608,-1886.97,0.00019726,2]
[315436683,1709035843617,-500.0,0.00019726,2]
[315436684,1709035843626,-500.0,0.00019726,2]
[315436685,1709035843635,-500.0,0.00019726,2]
[315436686,1709035843643,-500.0,0.00019726,2]
[315436687,1709035843652,-302.1536889,0.00019726,2]
[315436688,1709035843661,-500.0,0.00019726,2]
[315436689,1709035843670,-501.75694679,0.00019726,2]
[315436690,1709035843679,-625.34,0.00019726,2]
[315436691,1709035843688,-500.0,0.00019726,2]
[315436692,1709035843700,-10565.58,0.00019726,2]
[315436693,1709035843709,-500.0,0.00019726,2]
[315436694,1709035843717,-500.0,0.00019726,2]
[315436695,1709035843726,-2069.66,0.00019726,2]
[315436696,1709035843735,-500.0,0.00019726,2]
[315436697,1709035843744,-491.01392198,0.00019726,2]
[315436698,1709035843754,-581.55260075,0.00019726,2]
[315436699,1709035843763,-4293.14,0.00019726,2]
[315436700,1709035843771,-1990.4,0.00019726,2]
[315436701,1709035843882,-500.0,0.00019726,2]
[315436702,1709035843892,-500.0,0.00019726,2]
[315436703,1709035843901,-500.0,0.00019726,2]
[315436704,1709035843910,-19898.1,0.00019726,2]
[315436705,1709035843919,-560.14134803,0.00019726,2]
[315436706,1709035843931,-500.0,0.00019726,2]
[315436707,1709035843939,-500.0,0.00019726,2]
[315436708,1709035843949,-500.0,0.00019726,2]
[315436709,1709035843957,-500.0,0.00019726,2]
[315436710,1709035843966,-262.021544,0.00019726,2]
[315436711,1709035843975,-500.0,0.00019726,2]
[315436712,1709035843983,-500.0,0.00019726,2]
[315436713,1709035843993,-500.0,0.00019726,2]
[315436714,1709035844003,-4736.95,0.00019726,2]
[315436715,1709035844012,-500.0,0.00019726,2]
[315436716,1709035844021,-500.0,0.00019726,2]
[315436717,1709035844030,-500.0,0.00019726,2]
[315436718,1709035844038,-500.0,0.00019726,2]
[315436719,1709035844048,-500.0,0.00019726,2]
[315436720,1709035844057,-500.0,0.00019726,2]
[315436721,1709035844066,-500.0,0.00019726,2]
[315436722,1709035844074,-500.0,0.00019726,2]
[315436723,1709035844083,-1696.59,0.00019726,2]
[315436724,1709035844092,-3444.64,0.00019726,2]
[315436725,1709035844103,-500.0,0.00019726,2]
[315436726,1709035844112,-1520.22,0.00019726,2]
[315436727,1709035844121,-1350.58,0.00019726,2]
[315436728,1709035844130,-298.05466901,0.00019726,2]
[315436729,1709035844138,-183.67121497,0.00019726,2]
[315436730,1709035844147,-500.0,0.00019726,2]
[315436731,1709035844156,-615.37,0.00019726,2]
[315436732,1709035844165,-6761.48,0.00019726,2]
[315436733,1709035844174,-2461.52,0.00019726,2]
[315436734,1709035844184,-500.0,0.00019726,2]
[315436735,1709035844204,-2468.64,0.00019726,2]
[315436736,1709035844214,-4680.3,0.00019726,2]
[315436737,1709035844224,-500.0,0.00019726,2]
[315436738,1709035844233,-500.0,0.00019726,2]
[315436739,1709035844242,-2059.04703717,0.00019768,2]
[315436740,1709035844252,-521.70438859,0.00019879,2]
[315436741,1709035844262,-575.27,0.00019899,2]
[315436742,1709035844271,-575.27,0.00019899,2]
[315436743,1709035844281,-575.27,0.00019899,2]
[315436744,1709035844290,-575.27,0.00019899,2]
[315436745,1709035844300,-171948.99634958,0.000199,2]
[315436746,1709035844309,-1213.65041164,0.000199,2]
[315436747,1709035844318,-2059.04703717,0.00019909,2]
[315436748,1709035844327,-8231.22000589,0.0001991,2]
[315436749,1709035844337,-200.6117409,0.00019959,2]
[315436750,1709035844347,-200.6117409,0.00019959,2]
[315436751,1709035844357,-310.3820023,0.00019998,2]
[315436752,1709035844366,-194.26769162,0.00019998,2]
[315436753,1709035844376,-575.27,0.00019999,2]
[315436754,1709035844385,-575.27,0.00019999,2]
[315436755,1709035844394,-575.27,0.00019999,2]
[315436756,1709035844404,-575.27,0.00019999,2]
[315436757,1709035844413,-575.27,0.00019999,2]
[315436758,1709035844422,-575.27,0.00019999,2]
[315436759,1709035844434,-575.27,0.00019999,2]
[315436760,1709035844443,-575.27,0.00019999,2]
[315436761,1709035844452,-575.43,0.00019999,2]
[315436762,1709035844461,-500.0,0.0002,2]
[315436763,1709035844471,-500.0,0.0002,2]
[315436764,1709035844480,-500.0,0.0002,2]
[315436765,1709035844490,-501.97109407,0.0002,2]
[315436766,1709035844499,-500.0,0.0002,2]
[315436767,1709035844508,-1345.94,0.0002,2]
[315436768,1709035844517,-500.0,0.0002,2]
[315436769,1709035844526,-500.0,0.0002,2]
[315436770,1709035844535,-235.52195681,0.0002,2]
[315436771,1709035844544,-500.0,0.0002,2]
[315436772,1709035844554,-500.0,0.0002,2]
[315436773,1709035844562,-500.0,0.0002,2]
[315436774,1709035844571,-500.0,0.0002,2]
[315436775,1709035844580,-500.0,0.0002,2]
[315436776,1709035844589,-500.0,0.0002,2]
[315436777,1709035844598,-500.0,0.0002,2]
[315436778,1709035844607,-205.59281177,0.0002,2]
[315436779,1709035844617,-1508.38,0.0002,2]
[315436780,1709035844626,-500.0,0.0002,2]
[315436781,1709035844635,-719.11,0.0002,2]
[315436782,1709035844644,-500.0,0.0002,2]
[315436783,1709035844654,-604.49,0.0002,2]
[315436784,1709035844663,-500.0,0.0002,2]
[315436785,1709035844672,-500.0,0.0002,2]
[315436786,1709035844685,-790.66,0.0002,2]
[315436787,1709035844694,-282.98479173,0.0002,2]
[315436788,1709035844703,-500.0,0.0002,2]
[315436789,1709035844712,-500.0,0.0002,2]
[315436790,1709035844723,-500.0,0.0002,2]
[315436791,1709035844732,-500.0,0.0002,2]
[315436792,1709035844741,-686.73,0.0002,2]
[315436793,1709035844750,-333.04255885,0.0002,2]
[315436794,1709035844759,-500.0,0.0002,2]
[315436795,1709035844769,-500.0,0.0002,2]
[315436796,1709035844778,-620.31,0.0002,2]
[315436797,1709035844787,-231.23191091,0.0002,2]
[315436798,1709035844797,-500.0,0.0002,2]
[315436799,1709035844806,-1585.05,0.0002,2]
[315436800,1709035844815,-1620.18,0.0002,2]
[315436801,1709035844824,-500.0,0.0002,2]
[315436802,1709035844833,-500.0,0.0002,2]
[315436803,1709035844842,-500.0,0.0002,2]
[315436804,1709035844851,-317.207108,0.0002,2]
[315436805,1709035844860,-382.1661985,0.0002,2]
[315436806,1709035844869,-500.0,0.0002,2]
[315436807,1709035844878,-585.56,0.0002,2]
[315436808,1709035844887,-223.57975894,0.0002,2]
[315436809,1709035844897,-500.0,0.0002,2]
[315436810,1709035844906,-946.12,0.0002,2]
[315436811,1709035844914,-422.59914984,0.0002,2]
[315436812,1709035845106,-404.01179138,0.00019726,2]
[315436813,1709035845118,-490.1510355,0.00019726,2]
[315436814,1709035845129,-1772.66856104,0.00019726,2]
[315436815,1709035845141,-2388.07837051,0.00019726,2]
[315436816,1709035845153,-6759.42242454,0.00019726,2]
[315436817,1709035845165,-6553.63781703,0.00019726,2]
[315436818,1709035845174,-77.40085016,0.0002,2]
[315436819,1709035845183,-500.0,0.0002,2]
[315436820,1709035845192,-1452.52,0.0002,2]
[315436821,1709035845201,-169.21456967,0.0002,2]
[315436822,1709035845210,-741.79,0.0002,2]
[315436823,1709035845219,-500.0,0.0002,2]
[315436824,1709035845228,-928.72,0.0002,2]
[315436825,1709035845236,-500.0,0.0002,2]
[315436826,1709035845245,-500.0,0.0002,2]
[315436827,1709035845254,-2095.88966683,0.0002,2]
[315436829,1709035845265,-464.78866184,0.0002,2]
[315436831,1709035845276,-367.733038,0.0002,2]
[315436833,1709035845287,-251.39133245,0.0002,2]
[315436843,1709035845490,-757.99730088,0.0002,2]
[315436844,1709035845499,-2699.86,0.0002,2]
[315436845,1709035845508,-1719.04595899,0.0002,3]
[315436846,1709035845518,-293.26520376,0.0002,3]
[315436847,1709035845530,-2212.78183158,0.0002,3]
[315436848,1709035845539,-698.25,0.0002,2]
[315436849,1709035845548,-6073.11175297,0.0002,3]
[315436850,1709035845557,-809.97074008,0.0002,3]
[315436857,1709035845915,-500.0,0.00019178,2]
[315436858,1709035845924,-306.0,0.00019425,2]
[315436859,1709035845936,-3255.11799252,0.0002,3]
[315436873,1709036630834,9659.1289451,0.00017823,2]
[315436876,1709036706216,500.0,0.0001801,7]
[315436891,1709036920551,787.1695111,0.00017739,2]
[315436952,1709037032034,-156.07329446,0.00017993,2]
[315436953,1709037032048,-280.14317129,0.00017994,2]
[315436954,1709037032058,-155.17845522,0.00017994,2]
[315436955,1709037032067,-155.17845522,0.00017995,2]
[315436956,1709037032078,-1879.04617708,0.00017995,2]
[315436957,1709037032089,-2717.87041396,0.00017995,2]
[315436958,1709037032100,-261.31001703,0.000189,2]
[315436959,1709037032109,-58868.94313329,0.000191,2]
[315436960,1709037032128,-22683.11122666,0.000191,2]
[315437292,1709037037924,-2549.03952093,0.000191,2]
[315437293,1709037037937,-7396.67190812,0.000191,2]
[315437294,1709037037946,-193.87079512,0.00019176,2]
[315437295,1709037037955,-1213.58965902,0.00019177,2]
[315437296,1709037037964,-500.0,0.00019177,2]
[315437297,1709037037974,-500.0,0.00019178,2]
[315437298,1709037037985,-500.0,0.00019178,2]
[315437299,1709037037994,-596.36,0.00019178,2]
[315437300,1709037038003,-500.0,0.00019178,2]
[315437301,1709037038013,-500.0,0.00019178,2]
[315437302,1709037038023,-160.30624335,0.00019178,2]
[315437303,1709037038032,-500.0,0.00019178,2]
[315437304,1709037038043,-500.0,0.00019178,2]
[315437305,1709037038052,-374.17683201,0.00019178,2]
[315437306,1709037038063,-241.83685928,0.00019178,2]
[315437307,1709037038073,-500.0,0.00019178,2]
[315437308,1709037038082,-500.0,0.00019178,2]
[315437310,1709037038104,-500.0,0.00019178,2]
[315437311,1709037038115,-500.0,0.00019178,2]
[315437312,1709037038125,-705.92,0.00019178,2]
[315437313,1709037038136,-500.0,0.00019178,2]
[315437314,1709037038146,-502.22643844,0.00019178,2]
[315437315,1709037038157,-500.53133175,0.00019178,2]
[315437316,1709037038168,-500.0,0.00019178,2]
[315437317,1709037038178,-500.0,0.00019178,2]
[315437318,1709037038188,-500.0,0.00019178,2]
[315437319,1709037038198,-637.53,0.00019178,2]
[315437320,1709037038209,-500.0,0.00019178,2]
[315437321,1709037038219,-500.0,0.00019178,2]
[315437322,1709037038231,-500.0,0.00019178,2]
[315437323,1709037038241,-500.0,0.00019178,2]
[315437324,1709037038251,-249.69840039,0.00019178,2]
[315437325,1709037038261,-282.6196593,0.00019178,2]
[315437326,1709037038270,-500.0,0.00019178,2]
[315437327,1709037038280,-500.0,0.00019178,2]
[315437328,1709037038290,-500.0,0.00019178,2]
[315437329,1709037038299,-500.0,0.00019178,2]
[315437330,1709037038309,-151.0,0.00019178,2]
[315437331,1709037038319,-220.04820398,0.00019178,2]
[315437332,1709037038329,-500.0,0.00019178,2]
[315437333,1709037038338,-606.48,0.00019178,2]
[315437334,1709037038348,-500.64514974,0.00019178,2]
[315437335,1709037038358,-500.0,0.00019178,2]
[315437336,1709037038367,-500.0,0.00019178,2]
[315437337,1709037038377,-500.0,0.00019178,2]
[315437338,1709037038387,-500.0,0.00019178,2]
[315437339,1709037038398,-509.88522936,0.00019178,2]
[315437340,1709037038407,-1000.0,0.00019178,2]
[315437341,1709037038418,-211.14111785,0.00019178,2]
[315437342,1709037038427,-495.61212969,0.00019178,2]
[315437343,1709037038437,-843.57,0.00019178,2]
[315437344,1709037038447,-1392.0,0.00019178,2]
[315437345,1709037038456,-502.22775455,0.00019178,2]
[315437346,1709037038466,-400.32969916,0.00019178,2]
[315437347,1709037038478,-501.22369935,0.00019178,2]
[315437348,1709037038487,-500.0,0.00019178,2]
[315437349,1709037038496,-890.02,0.00019178,2]
[315437350,1709037038504,-500.0,0.00019178,2]
[315437351,1709037038513,-500.0,0.00019178,2]
[315437352,1709037038523,-500.0,0.00019178,2]
[315437353,1709037038533,-500.0,0.00019178,2]
[315437354,1709037038542,-500.0,0.00019178,2]
[315437355,1709037038551,-500.0,0.00019178,2]
[315437356,1709037038560,-500.0,0.00019178,2]
[315437357,1709037038570,-500.0,0.00019178,2]
[315437358,1709037038579,-500.0,0.00019178,2]
[315437359,1709037038589,-500.0,0.00019178,2]
[315437360,1709037038599,-241.11026349,0.00019178,2]
[315437361,1709037038609,-500.82063476,0.00019178,2]
[315437362,1709037038619,-500.0,0.00019178,2]
[315437363,1709037038628,-500.0,0.00019178,2]
[315437364,1709037038637,-500.0,0.00019178,2]
[315437365,1709037038647,-500.0,0.00019178,2]
[315437366,1709037038656,-500.97693957,0.00019178,2]
[315437367,1709037038666,-500.0,0.00019178,2]
[315437368,1709037038676,-500.65277545,0.00019178,2]
[315437369,1709037038685,-500.0,0.00019178,2]
[315437370,1709037038694,-500.0,0.00019178,2]
[315437371,1709037038704,-500.0,0.00019178,2]
[315437372,1709037038713,-500.0,0.00019178,2]
[315437373,1709037038723,-500.0,0.00019178,2]
[315437374,1709037038735,-500.0,0.00019178,2]
[315437375,1709037038744,-500.0,0.00019178,2]
[315437376,1709037038754,-1707.42,0.00019178,2]
[315437377,1709037038763,-543.68572627,0.00019178,2]
[315437378,1709037038773,-618.23,0.00019178,2]
[315437379,1709037038783,-500.0,0.00019178,2]
[315437380,1709037038792,-625.25473972,0.00019178,2]
[315437381,1709037038802,-500.0,0.00019178,2]
[315437382,1709037038811,-501.12706915,0.00019178,2]
[315437383,1709037038821,-500.0,0.00019178,2]
[315437384,1709037038831,-500.63186668,0.00019178,2]
[315437385,1709037038841,-500.0,0.00019178,2]
[315437386,1709037038851,-632.27431855,0.00019178,2]
[315437387,1709037038860,-500.0,0.00019178,2]
[315437388,1709037038871,-500.0,0.00019178,2]
[315437389,1709037038880,-500.35101391,0.00019178,2]
[315437390,1709037038890,-1675.88,0.00019178,2]
[315437391,1709037038899,-500.0,0.00019178,2]
[315437392,1709037038909,-501.65770956,0.00019178,2]
[315437393,1709037038918,-563.21410186,0.00019178,2]
[315437394,1709037038930,-500.11571016,0.00019178,2]
[315437395,1709037038939,-500.0,0.00019178,2]
[315437396,1709037038948,-500.0,0.00019178,2]
[315437397,1709037038958,-500.0,0.00019178,2]
[315437398,1709037038967,-500.0,0.00019178,2]
[315437399,1709037038977,-500.0,0.00019178,2]
[315437400,1709037038986,-500.0,0.00019178,2]
[315437401,1709037038995,-500.0,0.00019178,2]
[315437402,1709037039005,-171.73712487,0.00019178,2]
[315437403,1709037039014,-500.0,0.00019178,2]
[315437404,1709037039024,-500.0,0.00019178,2]
[315437405,1709037039033,-500.0,0.00019178,2]
[315437406,1709037039043,-500.65397138,0.00019178,2]
[315437407,1709037039052,-500.0,0.00019178,2]
[315437408,1709037039063,-500.0,0.00019178,2]
[315437409,1709037039072,-868.11,0.00019178,2]
[315437410,1709037039082,-310.0,0.00019178,2]
[315437411,1709037039091,-500.0,0.00019178,2]
[315437412,1709037039101,-500.0,0.00019178,2]
[315437413,1709037039110,-500.0,0.00019178,2]
[315437414,1709037039119,-500.0,0.00019178,2]
[315437415,1709037039130,-500.0,0.00019178,2]
[315437416,1709037039139,-500.0,0.00019178,2]
[315437417,1709037039148,-500.0,0.00019178,2]
[315437418,1709037039158,-200.0,0.00019178,2]
[315437419,1709037039167,-500.0,0.00019178,2]
[315437420,1709037039177,-500.0,0.00019178,2]
[315437421,1709037039186,-500.18571217,0.00019178,2]
[315437422,1709037039196,-500.0,0.00019178,2]
[315437423,1709037039205,-500.20544472,0.00019178,2]
[315437424,1709037039216,-500.0,0.00019178,2]
[315437425,1709037039228,-500.0,0.00019178,2]
[315437426,1709037039237,-500.0,0.00019178,2]
[315437427,1709037039246,-500.0,0.00019178,2]
[315437428,1709037039255,-500.48331824,0.00019178,2]
[315437429,1709037039264,-500.0,0.00019178,2]
[315437430,1709037039273,-500.0,0.00019178,2]
[315437431,1709037039282,-500.0,0.00019178,2]
[315437432,1709037039292,-738.24,0.00019178,2]
[315437433,1709037039302,-509.27132953,0.00019178,2]
[315437434,1709037039311,-500.0,0.00019178,2]
[315437435,1709037039321,-500.0,0.00019178,2]
[315437436,1709037039331,-500.0,0.00019178,2]
[315437437,1709037039340,-500.0,0.00019178,2]
[315437438,1709037039349,-500.0,0.00019178,2]
[315437439,1709037039358,-500.67580525,0.00019178,2]
[315437440,1709037039368,-500.0,0.00019178,2]
[315437441,1709037039377,-3469.94,0.00019178,2]
[315437442,1709037039387,-501.22858911,0.00019178,2]
[315437443,1709037039396,-500.0,0.00019178,2]
[315437444,1709037039406,-500.0,0.00019178,2]
[315437445,1709037039415,-221.31754441,0.00019178,2]
[315437447,1709037039425,-500.0,0.00019178,2]
[315437448,1709037039435,-250.3473104,0.00019178,2]
[315437449,1709037039445,-500.0,0.00019178,2]
[315437450,1709037039454,-500.0,0.00019178,2]
[315437451,1709037039464,-500.0,0.00019178,2]
[315437452,1709037039473,-500.0,0.00019178,2]
[315437453,1709037039484,-2682.36,0.00019178,2]
[315437454,1709037039493,-500.0,0.00019178,2]
[315437455,1709037039502,-500.0,0.00019178,2]
[315437456,1709037039513,-500.0,0.00019178,2]
[315437457,1709037039522,-500.0,0.00019178,2]
[315437458,1709037039531,-1938.62,0.00019178,2]
[315437459,1709037039541,-500.0,0.00019178,2]
[315437460,1709037039550,-500.0,0.00019178,2]
[315437461,1709037039560,-500.0,0.00019178,2]
[315437462,1709037039569,-501.22080587,0.00019178,2]
[315437463,1709037039579,-730.05,0.00019178,2]
[315437464,1709037039588,-500.0,0.00019178,2]
[315437465,1709037039597,-583.2051723,0.00019178,2]
[315437466,1709037039607,-500.0,0.00019178,2]
[315437467,1709037039616,-2409.39,0.00019178,2]
[315437468,1709037039625,-500.0,0.00019178,2]
[315437469,1709037039634,-500.0,0.00019178,2]
[315437470,1709037039643,-500.0,0.00019178,2]
[315437471,1709037039653,-500.0,0.00019178,2]
[315437472,1709037039662,-500.0,0.00019178,2]
[315437473,1709037039672,-1235.11,0.00019178,2]
[315437474,1709037039682,-500.0,0.00019178,2]
[315437475,1709037039691,-500.0,0.00019178,2]
[315437476,1709037039701,-544.99348939,0.00019178,2]
[315437477,1709037039710,-500.0,0.00019178,2]